[Event "Early-Titled-Tuesday-Blitz-July-09-2024"]
[Site "Chess.com"]
[Date "2024.07.09"]
[Round "7"]
[White "Aslanov_Umid"]
[Black "IlanSchnaider"]
[Result "1-0"]
[WhiteElo "2649"]
[BlackElo "2827"]
[TimeControl "180+1"]
[EndTime "9:20:51 PDT"]
[Termination "Aslanov_Umid won by checkmate"]

1. e4 {[%clk 0:03:00.9]} 1... c5 {[%clk 0:02:59.9]} 2. Nf3 {[%clk 0:03:00.2]}
2... d6 {[%clk 0:03:00.3]} 3. d4 {[%clk 0:03:00.6]} 3... cxd4 {[%clk 0:03:01.2]}
4. Nxd4 {[%clk 0:03:01.1]} 4... Nf6 {[%clk 0:03:01.4]} 5. Nc3 {[%clk 0:03:01.7]}
5... a6 {[%clk 0:03:00.7]} 6. Bc4 {[%clk 0:03:02]} 6... e6 {[%clk 0:03:00.4]} 7.
Bb3 {[%clk 0:03:02.8]} 7... b5 {[%clk 0:03:00.7]} 8. Bg5 {[%clk 0:03:02.8]} 8...
Be7 {[%clk 0:02:54.4]} 9. Qf3 {[%clk 0:03:02.9]} 9... Qc7 {[%clk 0:02:48.6]} 10.
O-O-O {[%clk 0:02:58.8]} 10... Nbd7 {[%clk 0:02:48.6]} 11. e5 {[%clk 0:02:58.1]}
11... Bb7 {[%clk 0:02:27.3]} 12. Qg3 {[%clk 0:02:58.3]} 12... dxe5 {[%clk
0:02:20.3]} 13. Bxe6 {[%clk 0:02:58.6]} 13... O-O-O {[%clk 0:01:12.6]} 14. Bxf6
{[%clk 0:02:05.8]} 14... Bxf6 {[%clk 0:01:06.8]} 15. Ndxb5 {[%clk 0:01:55.4]}
15... axb5 {[%clk 0:00:47.7]} 16. Nxb5 {[%clk 0:01:56.3]} 16... Qb6 {[%clk
0:00:27]} 17. Qc3+ {[%clk 0:01:56]} 17... Kb8 {[%clk 0:00:27.1]} 18. Bxd7 {[%clk
0:01:53]} 18... Rxd7 {[%clk 0:00:22.6]} 19. Rxd7 {[%clk 0:01:39.9]} 19... Qxb5
{[%clk 0:00:23.2]} 20. Rhd1 {[%clk 0:01:32.4]} 20... Rc8 {[%clk 0:00:21.3]} 21.
Qb3 {[%clk 0:01:27.4]} 21... Qxb3 {[%clk 0:00:18.6]} 22. axb3 {[%clk 0:01:28.3]}
22... Bxg2 {[%clk 0:00:18.8]} 23. Rxf7 {[%clk 0:01:26.8]} 23... Be4 {[%clk
0:00:19.2]} 24. Rd6 {[%clk 0:01:04.3]} 24... Rxc2+ {[%clk 0:00:16.6]} 25. Kd1
{[%clk 0:01:04.9]} 25... Rxb2 {[%clk 0:00:12.4]} 26. Rb6+ {[%clk 0:01:03.4]}
26... Kc8 {[%clk 0:00:12.4]} 27. b4 {[%clk 0:01:00.8]} 27... Bg5 {[%clk
0:00:07.9]} 28. Re6 {[%clk 0:00:44.2]} 28... Rb1+ {[%clk 0:00:05.3]} 29. Ke2
{[%clk 0:00:43.3]} 29... Rb2+ {[%clk 0:00:06.2]} 30. Kd1 {[%clk 0:00:42.1]}
30... Bc2+ {[%clk 0:00:01.9]} 31. Ke1 {[%clk 0:00:40.2]} 31... Bd3 {[%clk
0:00:01.6]} 32. Re8+ {[%clk 0:00:33]} 32... Bd8 {[%clk 0:00:02]} 33. Rff8 {[%clk
0:00:33.8]} 33... e4 {[%clk 0:00:01.6]} 34. Rxd8+ {[%clk 0:00:32.2]} 34... Kc7
{[%clk 0:00:02.5]} 35. Rd4 {[%clk 0:00:30.4]} 35... Re2+ {[%clk 0:00:02.3]} 36.
Kd1 {[%clk 0:00:29.8]} 36... g6 {[%clk 0:00:02.4]} 37. f3 {[%clk 0:00:29]} 37...
Rxh2 {[%clk 0:00:02.2]} 38. fxe4 {[%clk 0:00:28.3]} 38... Be2+ {[%clk
0:00:02.7]} 39. Ke1 {[%clk 0:00:28.3]} 39... Bb5 {[%clk 0:00:03.3]} 40. Rd5
{[%clk 0:00:25.4]} 40... Ba6 {[%clk 0:00:01.4]} 41. Rf7+ {[%clk 0:00:24.3]}
41... Kb8 {[%clk 0:00:01.2]} 42. Rd8+ {[%clk 0:00:23.7]} 42... Bc8 {[%clk
0:00:01.9]} 43. Rff8 {[%clk 0:00:24.5]} 43... Rc2 {[%clk 0:00:02.6]} 44. Kd1
{[%clk 0:00:24.6]} 44... Rc6 {[%clk 0:00:03.1]} 45. Kd2 {[%clk 0:00:24.8]} 45...
Kb7 {[%clk 0:00:03.2]} 46. Rf7+ {[%clk 0:00:25.4]} 46... Kb6 {[%clk 0:00:02.3]}
47. Rxh7 {[%clk 0:00:21.4]} 47... Rc4 {[%clk 0:00:02.7]} 48. Kd3 {[%clk
0:00:20.1]} 48... Rc6 {[%clk 0:00:02]} 49. Rhh8 {[%clk 0:00:19.8]} 49... Be6
{[%clk 0:00:02.1]} 50. Rb8+ {[%clk 0:00:19.5]} 50... Kc7 {[%clk 0:00:02.8]} 51.
Rbe8 {[%clk 0:00:18.5]} 51... Bd7 {[%clk 0:00:02.6]} 52. Re7 {[%clk 0:00:19]}
52... Rd6+ {[%clk 0:00:03.1]} 53. Ke3 {[%clk 0:00:19]} 53... Kb6 {[%clk
0:00:03.5]} 54. Rd8 {[%clk 0:00:19.1]} 54... Kc7 {[%clk 0:00:02.5]} 55. Rdxd7+
{[%clk 0:00:19.7]} 55... Rxd7 {[%clk 0:00:03]} 56. Rxd7+ {[%clk 0:00:20.6]}
56... Kxd7 {[%clk 0:00:03.9]} 57. Kf4 {[%clk 0:00:21.5]} 57... Kd6 {[%clk
0:00:03.6]} 58. Kg5 {[%clk 0:00:20.3]} 58... Ke5 {[%clk 0:00:04.1]} 59. b5
{[%clk 0:00:21]} 59... Kxe4 {[%clk 0:00:03.1]} 60. b6 {[%clk 0:00:21.7]} 60...
Ke5 {[%clk 0:00:03.7]} 61. b7 {[%clk 0:00:22.6]} 61... Ke6 {[%clk 0:00:04.5]}
62. b8=Q {[%clk 0:00:23.5]} 62... Kf7 {[%clk 0:00:05.4]} 63. Qe5 {[%clk
0:00:23.7]} 63... Kf8 {[%clk 0:00:05.6]} 64. Qc7 {[%clk 0:00:23.1]} 64... Kg8
{[%clk 0:00:06.5]} 65. Kxg6 {[%clk 0:00:24]} 65... Kf8 {[%clk 0:00:07.1]} 66.
Qf7# {[%clk 0:00:24.6]} 1-0

[Event "Early-Titled-Tuesday-Blitz-July-09-2024"]
[Site "Chess.com"]
[Date "2024.07.09"]
[Round "7"]
[White "RedFirePanda"]
[Black "stepanosinovsky"]
[Result "1-0"]
[WhiteElo "2456"]
[BlackElo "2342"]
[TimeControl "180+1"]
[EndTime "9:20:52 PDT"]
[Termination "RedFirePanda won on time"]

1. d4 {[%clk 0:03:00.9]} 1... Nf6 {[%clk 0:02:58.9]} 2. Bf4 {[%clk 0:03:00.8]}
2... g6 {[%clk 0:02:58]} 3. e3 {[%clk 0:03:00.1]} 3... Bg7 {[%clk 0:02:58.2]} 4.
c3 {[%clk 0:02:59.9]} 4... d6 {[%clk 0:02:49.5]} 5. Nd2 {[%clk 0:02:59.5]} 5...
O-O {[%clk 0:02:46]} 6. h3 {[%clk 0:02:54.9]} 6... Nfd7 {[%clk 0:02:44.5]} 7.
Ngf3 {[%clk 0:02:54.2]} 7... e5 {[%clk 0:02:44.3]} 8. dxe5 {[%clk 0:02:53.6]}
8... dxe5 {[%clk 0:02:45.2]} 9. Bg3 {[%clk 0:02:53.1]} 9... Nc6 {[%clk
0:02:41.6]} 10. Bc4 {[%clk 0:02:52.3]} 10... Nc5 {[%clk 0:02:35.5]} 11. O-O
{[%clk 0:02:50.5]} 11... Be6 {[%clk 0:02:35]} 12. Bxe6 {[%clk 0:02:49.3]} 12...
Nxe6 {[%clk 0:02:35.9]} 13. Nc4 {[%clk 0:02:48.4]} 13... Qxd1 {[%clk 0:02:28.5]}
14. Rfxd1 {[%clk 0:02:49.3]} 14... f6 {[%clk 0:02:28.6]} 15. Rd7 {[%clk
0:02:45.7]} 15... Rfd8 {[%clk 0:02:25.3]} 16. Rad1 {[%clk 0:02:41.3]} 16... Rxd7
{[%clk 0:02:18.6]} 17. Rxd7 {[%clk 0:02:42.2]} 17... Kf8 {[%clk 0:02:17.2]} 18.
Ne1 {[%clk 0:02:29.2]} 18... Ke8 {[%clk 0:02:15.3]} 19. Rd1 {[%clk 0:02:27.1]}
19... b5 {[%clk 0:02:14]} 20. Na3 {[%clk 0:02:26.9]} 20... a6 {[%clk 0:02:14.2]}
21. Nec2 {[%clk 0:02:24.3]} 21... Bf8 {[%clk 0:02:07.1]} 22. f3 {[%clk
0:02:17.7]} 22... Nc5 {[%clk 0:01:58.1]} 23. b3 {[%clk 0:02:09.5]} 23... Nd8
{[%clk 0:01:37.3]} 24. e4 {[%clk 0:02:03.6]} 24... Nde6 {[%clk 0:01:35.2]} 25.
Nb1 {[%clk 0:01:48.1]} 25... a5 {[%clk 0:01:33.8]} 26. Ne3 {[%clk 0:01:43.3]}
26... c6 {[%clk 0:01:32.2]} 27. Ng4 {[%clk 0:01:38.1]} 27... Be7 {[%clk
0:01:28.6]} 28. Bh4 {[%clk 0:01:33.4]} 28... Kf7 {[%clk 0:01:13.7]} 29. Bg3
{[%clk 0:01:17.3]} 29... Ke8 {[%clk 0:00:42.2]} 30. Nf2 {[%clk 0:00:47.1]} 30...
a4 {[%clk 0:00:37.5]} 31. b4 {[%clk 0:00:45.7]} 31... Nb7 {[%clk 0:00:38.1]} 32.
a3 {[%clk 0:00:43]} 32... Nd6 {[%clk 0:00:37.6]} 33. Nd2 {[%clk 0:00:40.3]}
33... Rd8 {[%clk 0:00:32.9]} 34. Kf1 {[%clk 0:00:39.5]} 34... Rd7 {[%clk
0:00:28.9]} 35. Ke2 {[%clk 0:00:39.6]} 35... Bd8 {[%clk 0:00:28.6]} 36. Nd3
{[%clk 0:00:38.5]} 36... Bb6 {[%clk 0:00:25.9]} 37. Bf2 {[%clk 0:00:35.8]} 37...
Bxf2 {[%clk 0:00:21.8]} 38. Nxf2 {[%clk 0:00:36.7]} 38... Nf4+ {[%clk 0:00:21]}
39. Kf1 {[%clk 0:00:36.5]} 39... Ke7 {[%clk 0:00:15.2]} 40. g3 {[%clk
0:00:36.8]} 40... Ne6 {[%clk 0:00:15.4]} 41. Ke2 {[%clk 0:00:36.7]} 41... Nc7
{[%clk 0:00:15.2]} 42. Nd3 {[%clk 0:00:34.7]} 42... Ne6 {[%clk 0:00:13.5]} 43.
Rc1 {[%clk 0:00:27.5]} 43... h5 {[%clk 0:00:12.8]} 44. h4 {[%clk 0:00:25.9]}
44... Rd8 {[%clk 0:00:12]} 45. Ke3 {[%clk 0:00:25.8]} 45... Rd7 {[%clk
0:00:11.7]} 46. Nb2 {[%clk 0:00:13.2]} 46... f5 {[%clk 0:00:09.8]} 47. Nd3
{[%clk 0:00:10.3]} 47... Kf6 {[%clk 0:00:09.5]} 48. c4 {[%clk 0:00:08.5]} 48...
Nd4 {[%clk 0:00:08.6]} 49. cxb5 {[%clk 0:00:08]} 49... cxb5 {[%clk 0:00:07.7]}
50. Rc5 {[%clk 0:00:07.2]} 50... Re7 {[%clk 0:00:05.1]} 51. Rd5 {[%clk 0:00:04]}
51... Nc2+ {[%clk 0:00:04]} 52. Ke2 {[%clk 0:00:03.5]} 52... Nc4 {[%clk
0:00:04.1]} 53. Nxc4 {[%clk 0:00:03.1]} 53... bxc4 {[%clk 0:00:05]} 54. Nc5
{[%clk 0:00:03]} 54... Re6 {[%clk 0:00:03.5]} 55. Nd7+ {[%clk 0:00:02.4]} 55...
Ke7 {[%clk 0:00:02.9]} 56. Nc5 {[%clk 0:00:03.3]} 1-0

[Event "Early-Titled-Tuesday-Blitz-July-09-2024"]
[Site "Chess.com"]
[Date "2024.07.09"]
[Round "7"]
[White "JordanLoyd2020"]
[Black "Mikasinski"]
[Result "0-1"]
[WhiteElo "2513"]
[BlackElo "2690"]
[TimeControl "180+1"]
[EndTime "9:20:54 PDT"]
[Termination "Mikasinski won by resignation"]

1. d4 {[%clk 0:03:00.9]} 1... Nf6 {[%clk 0:02:59.8]} 2. Bf4 {[%clk 0:03:00.5]}
2... g6 {[%clk 0:02:59.5]} 3. Nc3 {[%clk 0:03:00.3]} 3... d5 {[%clk 0:02:59.7]}
4. e3 {[%clk 0:03:00.8]} 4... Bg7 {[%clk 0:02:59.8]} 5. h4 {[%clk 0:03:01.2]}
5... h5 {[%clk 0:03:00.5]} 6. Nf3 {[%clk 0:03:00.7]} 6... O-O {[%clk 0:03:01.2]}
7. Be2 {[%clk 0:02:52.2]} 7... Bf5 {[%clk 0:03:00.2]} 8. Ne5 {[%clk 0:02:46.5]}
8... c5 {[%clk 0:03:00.3]} 9. Qd2 {[%clk 0:02:43.8]} 9... cxd4 {[%clk 0:03:00]}
10. exd4 {[%clk 0:02:43.4]} 10... Nc6 {[%clk 0:03:00.7]} 11. f3 {[%clk
0:02:38.2]} 11... Rc8 {[%clk 0:02:59.8]} 12. O-O-O {[%clk 0:02:35]} 12... Qa5
{[%clk 0:02:58.6]} 13. Kb1 {[%clk 0:02:31.5]} 13... Nb4 {[%clk 0:02:56.3]} 14.
Nd3 {[%clk 0:02:23.1]} 14... Bxd3 {[%clk 0:02:53.8]} 15. Bxd3 {[%clk 0:02:20.7]}
15... Nd7 {[%clk 0:02:21.8]} 16. a3 {[%clk 0:01:53.7]} 16... Nxd3 {[%clk
0:02:21.4]} 17. Qxd3 {[%clk 0:01:54.6]} 17... Nb6 {[%clk 0:02:21.6]} 18. g4
{[%clk 0:01:34.4]} 18... Nc4 {[%clk 0:02:18.9]} 19. Na2 {[%clk 0:01:28]} 19...
Qb6 {[%clk 0:01:45.1]} 20. Bc1 {[%clk 0:01:26]} 20... hxg4 {[%clk 0:01:32.9]}
21. fxg4 {[%clk 0:01:21.4]} 21... Bxd4 {[%clk 0:01:31]} 22. Nb4 {[%clk
0:01:12.3]} 22... Bxb2 {[%clk 0:01:04.2]} 23. Nxd5 {[%clk 0:00:44.7]} 23... Qb5
{[%clk 0:01:03.8]} 24. Qb3 {[%clk 0:00:23.1]} 24... Bxc1 {[%clk 0:00:46.3]} 25.
Nxe7+ {[%clk 0:00:09.3]} 25... Kg7 {[%clk 0:00:27.4]} 26. Nxc8 {[%clk
0:00:09.3]} 26... Bf4 {[%clk 0:00:15.3]} 27. Qxb5 {[%clk 0:00:04.4]} 27... Nxa3+
{[%clk 0:00:15.3]} 28. Ka2 {[%clk 0:00:04.3]} 28... Nxb5 {[%clk 0:00:16]} 29.
Ne7 {[%clk 0:00:04.2]} 29... Nc3+ {[%clk 0:00:15.8]} 30. Kb3 {[%clk 0:00:04]}
30... Nxd1 {[%clk 0:00:16.3]} 31. Rxd1 {[%clk 0:00:04.6]} 31... Re8 {[%clk
0:00:15.2]} 32. Nd5 {[%clk 0:00:04.7]} 32... Bg3 {[%clk 0:00:12.9]} 33. Rd4
{[%clk 0:00:04.1]} 33... Bxh4 {[%clk 0:00:12.6]} 34. Rc4 {[%clk 0:00:03.6]}
34... Re5 {[%clk 0:00:12.4]} 35. Nc3 {[%clk 0:00:02.6]} 35... Be1 {[%clk
0:00:11.9]} 36. Nd1 {[%clk 0:00:02]} 36... Ba5 {[%clk 0:00:08.2]} 37. c3 {[%clk
0:00:02.4]} 37... Bb6 {[%clk 0:00:08]} 38. Kc2 {[%clk 0:00:02.5]} 38... f5
{[%clk 0:00:07.5]} 39. gxf5 {[%clk 0:00:02.4]} 39... Rxf5 {[%clk 0:00:08.1]} 40.
Nb2 {[%clk 0:00:03.3]} 40... Rf2+ {[%clk 0:00:07.9]} 41. Kb3 {[%clk 0:00:03.5]}
41... g5 {[%clk 0:00:08.4]} 42. Nd3 {[%clk 0:00:04.1]} 42... Rf5 {[%clk
0:00:08.7]} 43. Re4 {[%clk 0:00:04.2]} 43... Kf6 {[%clk 0:00:07.6]} 44. Nb4
{[%clk 0:00:03.2]} 44... a5 {[%clk 0:00:05.7]} 45. Nc2 {[%clk 0:00:02.8]} 45...
Bc5 {[%clk 0:00:05.3]} 46. Ne1 {[%clk 0:00:02.3]} 46... b5 {[%clk 0:00:05.4]}
47. Nd3 {[%clk 0:00:02.8]} 47... a4+ {[%clk 0:00:06]} 48. Kc2 {[%clk 0:00:03]}
48... Bd6 {[%clk 0:00:06.2]} 49. Rd4 {[%clk 0:00:02.1]} 49... Bf4 {[%clk
0:00:04.9]} 50. Nb4 {[%clk 0:00:01.6]} 50... g4 {[%clk 0:00:03.3]} 51. Nd5+
{[%clk 0:00:01.8]} 51... Kg5 {[%clk 0:00:03.6]} 52. Kd3 {[%clk 0:00:01.2]} 52...
g3 {[%clk 0:00:03.8]} 53. Nxf4 {[%clk 0:00:01.5]} 53... Rxf4 {[%clk 0:00:04]}
54. Rd5+ {[%clk 0:00:02.4]} 54... Kg4 {[%clk 0:00:04.6]} 55. Rxb5 {[%clk
0:00:02.3]} 55... g2 {[%clk 0:00:04.8]} 56. Rb8 {[%clk 0:00:03]} 56... Kg3
{[%clk 0:00:04.6]} 57. Rg8+ {[%clk 0:00:03.2]} 57... Kf2 {[%clk 0:00:05.1]} 0-1

[Event "Early-Titled-Tuesday-Blitz-July-09-2024"]
[Site "Chess.com"]
[Date "2024.07.09"]
[Round "7"]
[White "wild3000"]
[Black "Feegus"]
[Result "1-0"]
[WhiteElo "2473"]
[BlackElo "2609"]
[TimeControl "180+1"]
[EndTime "9:20:55 PDT"]
[Termination "wild3000 won by resignation"]

1. d4 {[%clk 0:03:00.1]} 1... d5 {[%clk 0:02:59.3]} 2. Nf3 {[%clk 0:03:00.2]}
2... Nf6 {[%clk 0:02:59.3]} 3. g3 {[%clk 0:03:00]} 3... e6 {[%clk 0:02:56.1]} 4.
Bg2 {[%clk 0:02:54.3]} 4... Be7 {[%clk 0:02:56.4]} 5. O-O {[%clk 0:02:54.1]}
5... b5 {[%clk 0:02:57.1]} 6. a4 {[%clk 0:02:52.5]} 6... b4 {[%clk 0:02:55.8]}
7. c4 {[%clk 0:02:52.9]} 7... bxc3 {[%clk 0:02:55.1]} 8. bxc3 {[%clk 0:02:49]}
8... O-O {[%clk 0:02:54.5]} 9. Ba3 {[%clk 0:02:43.5]} 9... a5 {[%clk 0:02:51.8]}
10. Ne5 {[%clk 0:02:39.3]} 10... c5 {[%clk 0:02:44.8]} 11. Nd2 {[%clk
0:02:22.7]} 11... Qc7 {[%clk 0:02:41.8]} 12. Nb3 {[%clk 0:02:11.9]} 12... Nfd7
{[%clk 0:02:25.9]} 13. Nxd7 {[%clk 0:02:00.4]} 13... Nxd7 {[%clk 0:02:26.8]} 14.
c4 {[%clk 0:01:56.7]} 14... dxc4 {[%clk 0:01:55.4]} 15. Bxa8 {[%clk 0:01:44.9]}
15... cxb3 {[%clk 0:01:53]} 16. Qxb3 {[%clk 0:01:41.3]} 16... Nb6 {[%clk
0:01:34.5]} 17. Bf3 {[%clk 0:01:26.7]} 17... c4 {[%clk 0:01:34.3]} 18. Qc3
{[%clk 0:01:21.6]} 18... Nxa4 {[%clk 0:01:33.2]} 19. Qc2 {[%clk 0:01:21.3]}
19... Nb6 {[%clk 0:01:04.3]} 20. Bxe7 {[%clk 0:01:17.1]} 20... Qxe7 {[%clk
0:01:05.2]} 21. Rxa5 {[%clk 0:01:16.6]} 21... Qc7 {[%clk 0:00:45.8]} 22. Rc1
{[%clk 0:01:04.1]} 22... Bd7 {[%clk 0:00:42.3]} 23. Rc5 {[%clk 0:00:56.8]} 23...
Qd6 {[%clk 0:00:41.1]} 24. e3 {[%clk 0:00:56.6]} 24... g6 {[%clk 0:00:39.2]} 25.
h4 {[%clk 0:00:54.4]} 25... Ba4 {[%clk 0:00:30.4]} 26. Qe4 {[%clk 0:00:47.5]}
26... Bb3 {[%clk 0:00:28.3]} 27. h5 {[%clk 0:00:46.3]} 27... Nd5 {[%clk
0:00:24.8]} 28. h6 {[%clk 0:00:27.7]} 28... Rd8 {[%clk 0:00:19.3]} 29. Kg2
{[%clk 0:00:23.8]} 29... Qf8 {[%clk 0:00:16.9]} 30. Qh4 {[%clk 0:00:20.3]} 30...
Rb8 {[%clk 0:00:13.2]} 31. Bxd5 {[%clk 0:00:17.2]} 31... exd5 {[%clk 0:00:13.7]}
32. Rxd5 {[%clk 0:00:18.1]} 32... c3 {[%clk 0:00:14.2]} 33. Rc5 {[%clk
0:00:17.6]} 33... c2 {[%clk 0:00:14.6]} 34. R5xc2 {[%clk 0:00:15.9]} 34... Bxc2
{[%clk 0:00:14.8]} 35. Rxc2 {[%clk 0:00:16.8]} 35... Qd6 {[%clk 0:00:07.1]} 36.
Qf4 {[%clk 0:00:12.2]} 36... Qd5+ {[%clk 0:00:06.4]} 37. e4 {[%clk 0:00:09.8]}
37... Qd8 {[%clk 0:00:04.6]} 38. Qe5 {[%clk 0:00:07.5]} 38... f6 {[%clk
0:00:04.2]} 39. Qe6+ {[%clk 0:00:06.9]} 39... Kh8 {[%clk 0:00:04.4]} 40. Rc6
{[%clk 0:00:06.2]} 40... Rb7 {[%clk 0:00:01.5]} 41. d5 {[%clk 0:00:05]} 41...
Rd7 {[%clk 0:00:01.2]} 42. Qxf6+ {[%clk 0:00:05.2]} 42... Qxf6 {[%clk
0:00:01.3]} 43. Rxf6 {[%clk 0:00:06.1]} 43... Kg8 {[%clk 0:00:02.2]} 44. f4
{[%clk 0:00:05.4]} 44... Rd8 {[%clk 0:00:02.5]} 45. Kf3 {[%clk 0:00:04.9]} 45...
Ra8 {[%clk 0:00:03]} 46. Rc6 {[%clk 0:00:05]} 46... Rf8 {[%clk 0:00:03.1]} 47.
e5 {[%clk 0:00:05.1]} 47... Re8 {[%clk 0:00:03.7]} 48. Rc7 {[%clk 0:00:05.3]}
48... Ra8 {[%clk 0:00:04.6]} 49. d6 {[%clk 0:00:05.5]} 49... Kf8 {[%clk
0:00:04.6]} 50. Kg4 {[%clk 0:00:05.8]} 50... Kg8 {[%clk 0:00:05.4]} 51. Re7
{[%clk 0:00:05.8]} 51... Rf8 {[%clk 0:00:05.9]} 52. Rg7+ {[%clk 0:00:05.9]}
52... Kh8 {[%clk 0:00:06.4]} 53. e6 {[%clk 0:00:06.1]} 53... g5 {[%clk
0:00:06.5]} 54. f5 {[%clk 0:00:05.8]} 54... Rxf5 {[%clk 0:00:06.3]} 55. Rxh7+
{[%clk 0:00:05.2]} 55... Kxh7 {[%clk 0:00:06.5]} 56. Kxf5 {[%clk 0:00:06.1]}
56... g4 {[%clk 0:00:07.4]} 57. Kxg4 {[%clk 0:00:06.1]} 57... Kxh6 {[%clk
0:00:08.3]} 58. d7 {[%clk 0:00:07]} 58... Kg6 {[%clk 0:00:09]} 59. d8=Q {[%clk
0:00:07.9]} 1-0

[Event "Early-Titled-Tuesday-Blitz-July-09-2024"]
[Site "Chess.com"]
[Date "2024.07.09"]
[Round "7"]
[White "DenLaz"]
[Black "Andreikka"]
[Result "0-1"]
[WhiteElo "3144"]
[BlackElo "3033"]
[TimeControl "180+1"]
[EndTime "9:20:57 PDT"]
[Termination "Andreikka won by resignation"]

1. d4 {[%clk 0:03:00.9]} 1... Nf6 {[%clk 0:02:59.4]} 2. c4 {[%clk 0:03:01.5]}
2... e6 {[%clk 0:02:58.8]} 3. Nf3 {[%clk 0:03:02]} 3... d5 {[%clk 0:02:57.9]} 4.
g3 {[%clk 0:03:02.6]} 4... Bb4+ {[%clk 0:02:57.5]} 5. Bd2 {[%clk 0:03:02.9]}
5... Be7 {[%clk 0:02:56.8]} 6. Bg2 {[%clk 0:03:03.4]} 6... O-O {[%clk
0:02:56.8]} 7. Qc2 {[%clk 0:03:03.6]} 7... Nbd7 {[%clk 0:02:56.7]} 8. O-O {[%clk
0:03:03.8]} 8... c6 {[%clk 0:02:56.9]} 9. Bf4 {[%clk 0:03:04.5]} 9... h6 {[%clk
0:02:56.2]} 10. Rd1 {[%clk 0:03:02.1]} 10... a5 {[%clk 0:02:55.9]} 11. Nbd2
{[%clk 0:03:00.6]} 11... g5 {[%clk 0:02:51.8]} 12. Be5 {[%clk 0:02:59.4]} 12...
Nh7 {[%clk 0:02:46.6]} 13. e4 {[%clk 0:02:46.2]} 13... g4 {[%clk 0:02:21.6]} 14.
Ne1 {[%clk 0:02:45.1]} 14... Nxe5 {[%clk 0:02:20.1]} 15. dxe5 {[%clk 0:02:44.9]}
15... d4 {[%clk 0:02:12.6]} 16. c5 {[%clk 0:02:44.9]} 16... b6 {[%clk
0:02:10.1]} 17. cxb6 {[%clk 0:02:40.9]} 17... Qxb6 {[%clk 0:02:11]} 18. Nc4
{[%clk 0:02:41.1]} 18... Qc7 {[%clk 0:02:09]} 19. Rxd4 {[%clk 0:02:39.2]} 19...
Ba6 {[%clk 0:02:04.3]} 20. Rad1 {[%clk 0:02:23.2]} 20... Rad8 {[%clk 0:01:46.1]}
21. Nd6 {[%clk 0:01:43.9]} 21... f6 {[%clk 0:01:22.6]} 22. Qb3 {[%clk
0:00:57.8]} 22... Ng5 {[%clk 0:01:03.9]} 23. Nf5 {[%clk 0:00:57.3]} 23... Bc5
{[%clk 0:00:51.9]} 24. Rxd8 {[%clk 0:00:52.9]} 24... Rxd8 {[%clk 0:00:52.8]} 25.
Nxh6+ {[%clk 0:00:52.3]} 25... Kh7 {[%clk 0:00:47]} 26. Nxg4 {[%clk 0:00:51.9]}
26... Be2 {[%clk 0:00:42.2]} 27. Nxf6+ {[%clk 0:00:48.4]} 27... Kg6 {[%clk
0:00:41.6]} 28. Rxd8 {[%clk 0:00:37.4]} 28... Qxd8 {[%clk 0:00:41.6]} 29. Qc2
{[%clk 0:00:38.1]} 29... Qd1 {[%clk 0:00:29.1]} 30. Qxd1 {[%clk 0:00:37.3]}
30... Bxd1 {[%clk 0:00:30]} 31. h4 {[%clk 0:00:33.4]} 31... Nf7 {[%clk
0:00:28.6]} 32. Nd3 {[%clk 0:00:34]} 32... Bd4 {[%clk 0:00:25.2]} 33. Nf4+
{[%clk 0:00:34.3]} 33... Kh6 {[%clk 0:00:23.2]} 34. Nxe6 {[%clk 0:00:33.5]}
34... Bxe5 {[%clk 0:00:22.5]} 35. Ng4+ {[%clk 0:00:33.8]} 35... Bxg4 {[%clk
0:00:22]} 36. Nc5 {[%clk 0:00:27.2]} 36... Bxb2 {[%clk 0:00:17.6]} 37. Kf1
{[%clk 0:00:19.6]} 37... Ne5 {[%clk 0:00:17.5]} 38. f4 {[%clk 0:00:08.9]} 38...
Nc4 {[%clk 0:00:17.1]} 39. e5 {[%clk 0:00:07]} 39... Bd4 {[%clk 0:00:12.9]} 40.
Nb3 {[%clk 0:00:07.1]} 40... Ne3+ {[%clk 0:00:10.7]} 41. Kf2 {[%clk 0:00:07.4]}
41... Nd1+ {[%clk 0:00:09.6]} 42. Ke1 {[%clk 0:00:06.5]} 42... Bc3+ {[%clk
0:00:08.4]} 43. Kf1 {[%clk 0:00:06.3]} 43... a4 {[%clk 0:00:08.4]} 44. Nc5
{[%clk 0:00:05.5]} 44... Bd4 {[%clk 0:00:06.9]} 45. Nxa4 {[%clk 0:00:04.5]}
45... Ne3+ {[%clk 0:00:06.8]} 46. Kf2 {[%clk 0:00:05]} 46... Nxg2+ {[%clk
0:00:05]} 47. Kxg2 {[%clk 0:00:05.9]} 47... Bd1 {[%clk 0:00:05.5]} 48. e6 {[%clk
0:00:05.6]} 48... Bxa4 {[%clk 0:00:05.4]} 49. g4 {[%clk 0:00:04.4]} 49... c5
{[%clk 0:00:05.8]} 50. f5 {[%clk 0:00:04.9]} 50... c4 {[%clk 0:00:04.7]} 51. g5+
{[%clk 0:00:05.4]} 51... Kg7 {[%clk 0:00:04.9]} 52. h5 {[%clk 0:00:05.5]} 52...
c3 {[%clk 0:00:04.9]} 53. h6+ {[%clk 0:00:05.9]} 53... Kh7 {[%clk 0:00:05.2]}
54. f6 {[%clk 0:00:06.5]} 54... c2 {[%clk 0:00:04.7]} 55. f7 {[%clk 0:00:07.1]}
55... Bc5 {[%clk 0:00:04.7]} 0-1